Cogmind - Beta 12 X1 @@@ ROGUE MODE // 2022.07.24 @ 18:54:19 Player: Jezoensis Result: Escaped! Performance ------------- Evolutions (9) 4500 Regions Visited (31) 6200 Robots Destroyed (306) 1530 Value Destroyed (14235) 14235 Prototype IDs (243) 4860 Alien Tech Used (0) 0 Bonus (16342) 16342 TOTAL SCORE: 47667 Bonus ------- High Alert Combat Kills 1304 Follower Combat Kills 1721 Entered Garrisons 1200 Used RIF Installer 3500 Entered DSFs 500 Network Hubs Disabled 400 Aligned with FarCom 300 Met Data Miner 300 Used Data Conduit 3000 Built Enhanced Grunts 300 A7 Reached Mainframe 300 Met R17 at Cetus 500 Pursued by Intercept 1000 Win 3000 Friendly Fire -983 Cogmind --------- Core Integrity 1475/1600 Matter 249/300 Energy 2083/2100 System Corruption 8% Temperature Cool (8) Movement Treading (150) Location To Epsilon Eridani Parts ------- > --- POWER (2) -------- Quantum Reactor Quantum Reactor > --- PROPULSION (5) --- Improved Medium Treads Biometal Heavy Treads Biometal Heavy Treads > --- UTILITY (11) ----- Advanced Heat Sink Experimental Heat Sink Advanced Cooling System Huge Storage Unit Superbattery Experimental Optical Array Advanced Salvage Targeting Computer Experimental Targeting Computer Improved Kinecellerator Advanced Weapon Cycler Improved Transmission Jammer > --- WEAPON (7) ------- Railgun Advanced KE Penetrator Advanced KE Penetrator Multirail Compact Linear Accelerator Compact Linear Accelerator Compact Linear Accelerator > --- INVENTORY (25) --- Improved Heavy Siege Treads Biometal Heavy Treads Biometal Heavy Treads Matter Compressor (250) Structural Scanner Improved Weapon Cycler Advanced Thermal Shield EM Disruption Field Force Field Long-range Tractor Beam Enhanced Nova Cannon KE Penetrator Railgun Railgun Linear Accelerator Linear Accelerator Compact Linear Accelerator Tesla Bomb Launcher Micro-nuke Launcher Peak State ------------ > --- POWER ------------ Heavy Antimatter Reactor Quantum Reactor > --- PROPULSION ------- Improved Medium Treads Biometal Heavy Treads Biometal Heavy Treads > --- UTILITY ---------- Advanced Heat Sink Experimental Heat Sink Huge Storage Unit Experimental Optical Array Advanced Salvage Targeting Computer Experimental Targeting Computer Advanced Target Analyzer Improved Kinecellerator Improved Weapon Cycler Advanced Weapon Cycler Deep Network Scanner > --- WEAPON ----------- Advanced KE Penetrator Linked Autogun Compact Linear Accelerator Compact Linear Accelerator Compact Linear Accelerator Compact Linear Accelerator > --- INVENTORY -------- Quantum Reactor Improved Heavy Siege Treads Biometal Heavy Treads Biometal Heavy Treads Superbattery Matter Compressor Matter Compressor Structural Scanner Improved Transmission Jammer Advanced Thermal Shield EM Disruption Field Force Field Long-range Tractor Beam Enhanced Nova Cannon KE Penetrator Railgun Railgun Railgun Railgun Advanced KE Penetrator Tesla Bomb Launcher Micro-nuke Launcher [Rating: 209] Favorites ----------- Power Heavy Ion Engine Engine Heavy Ion Engine Power Core Fission Core Reactor Quantum Reactor Propulsion Improved Medium Treads Treads Improved Medium Treads Leg Aluminum Leg Wheel Wheel Utility Huge Storage Unit Device Transmission Jammer Storage Huge Storage Unit Processor Advanced Targeting Computer Hackware Deep Network Scanner Protection Improved Utility Shielding Weapon KE Penetrator Energy Gun Improved Medium Laser Energy Cannon Matter Neutralizer Ballistic Gun KE Penetrator Ballistic Cannon Antimatter Cannon Launcher Tesla Bomb Launcher Special Weapon Improved Remote Datajack Slashing Weapon Great Axe Build | -11 -10 -10 -9 -9 -9 -8 -8 -8 -8 -8 -7 -7 -7 -7 -6 -6 -6 -5 -5 -5 -5 -5 -5 -5 -5 -4 -4 -3 -2 -2 -1 ------- Run | Scr Mat Min Mat Min Exi Min Mat Gar Mat Gar Fac Low Low Dat Pro Fac Gar Fac Gar Fac Ext Cet Arc Hub Gar Fac Gar Res Res DSF Acc Slots Evolved 18 | . . . 2 . . . 2 . . . 2 . . . . 2 . 2 . . . . . . . 2 . 2 2 . 2 Power 1 | . . . . . . . . . . . . . . . . . . . . . . . . . . . . . 1 . . Propulsion 3 | . . . 1 . . . . . . . . . . . . 1 . 1 . . . . . . . . . . . . . Utility 9 | . . . 1 . . . 1 . . . 2 . . . . 1 . . . . . . . . . 1 . 1 1 . 1 Weapon 5 | . . . . . . . 1 . . . . . . . . . . 1 . . . . . . . 1 . 1 . . 1 Parts Attached 640 | 8 20 15 37 15 1 1 18 44 22 8 14 10 7 22 5 33 12 22 28 19 19 12 8 28 50 13 30 22 8 26 63 Power 15 | 1 1 1 1 . . . 1 . . . 2 . . 1 . 1 . . 1 . . 1 . . 1 . . . 1 1 1 Engine 7 | 1 1 1 1 . . . 1 . . . 2 . . . . . . . . . . . . . . . . . . . . Core 2 | . . . . . . . . . . . . . . . . 1 . . 1 . . . . . . . . . . . . Reactor 6 | . . . . . . . . . . . . . . 1 . . . . . . . 1 . . 1 . . . 1 1 1 Propulsion 136 | 3 13 8 21 7 1 . 5 27 13 3 1 . . 2 . 6 . 2 2 5 . 2 1 2 7 1 1 1 2 . . Treads 79 | . 6 4 10 2 1 . 3 13 6 2 . . . 1 . 5 . 2 2 5 . 2 1 2 7 1 1 1 2 . . Leg 1 | . . . 1 . . . . . . . . . . . . . . . . . . . . . . . . . . . . Wheel 56 | 3 7 4 10 5 . . 2 14 7 1 1 . . 1 . 1 . . . . . . . . . . . . . . . Hover . | . . . . . . . . . . . . . . . . . . . . . . . . . . . . . . . . Flight . | . . . . . . . . . . . . . . . . . . . . . . . . . . . . . . . . Utility 264 | 2 1 5 10 4 . 1 5 3 7 3 6 10 4 13 5 16 6 12 18 13 10 3 3 19 8 6 11 11 3 14 32 Device 217 | 1 . 5 8 3 . 1 4 3 7 3 3 10 4 11 5 13 5 10 15 8 7 3 3 18 7 5 10 7 2 10 26 Storage 15 | 1 1 . 1 . . . . . . . 1 . . 2 . 1 . . . . 1 . . . . . 1 1 . . 5 Processor 11 | . . . 1 1 . . . . . . 2 . . . . 1 . . . . . . . 1 1 . . 3 . 1 . Hackware 14 | . . . . . . . 1 . . . . . . . . 1 . 2 . 4 . . . . . 1 . . 1 3 1 Protection 7 | . . . . . . . . . . . . . . . . . 1 . 3 1 2 . . . . . . . . . . Artifact . | . . . . . . . . . . . . . . . . . . . . . . . . . . . . . . . . Weapon 225 | 2 5 1 5 4 . . 7 14 2 2 5 . 3 6 . 10 6 8 7 1 9 6 4 7 34 6 18 10 2 11 30 Energy Gun 22 | 1 3 1 3 1 . . 4 6 . . . . 1 . . 2 . . . . . . . . . . . . . . . Energy Cannon 30 | . . . 1 2 . . 1 2 . . . . . 1 . 3 . 2 1 . 1 1 . 2 2 2 . 3 1 1 4 Ballistic Gun 101 | 1 1 . 1 1 . . 1 4 2 1 2 . 1 1 . 3 2 5 2 1 3 2 4 3 24 3 10 5 . 7 11 Ballistic Cannon 23 | . . . . . . . . . . . 3 . . 2 . 1 2 . 2 . 2 2 . . 2 . . 1 . 2 4 Launcher 39 | . . . . . . . 1 2 . 1 . . . 2 . 1 2 1 2 . 2 1 . 2 5 1 8 1 1 . 6 Special Weapon 9 | . 1 . . . . . . . . . . . . . . . . . . . 1 . . . 1 . . . . 1 5 Impact Weapon . | . . . . . . . . . . . . . . . . . . . . . . . . . . . . . . . . Slashing Weapon 1 | . . . . . . . . . . . . . 1 . . . . . . . . . . . . . . . . . . Piercing Weapon . | . . . . . . . . . . . . . . . . . . . . . . . . . . . . . . . . Special Melee Weapon . | . . . . . . . . . . . . . . . . . . . . . . . . . . . . . . . . Unidentified Prototypes 8 | . . . . . . . 1 . 1 . 2 . . . . 1 . . . 1 . . . . . . . . . . 2 Corrupted Parts 11 | . . . . . . . . . . . . . . . . . . . . . . 1 . 1 8 . . . . . 1 System Corruption 79 | . . . . . . . . . . . . . . . . . . . . . . 10 . 10 57 . . . . . 2 Parts Lost 26 | . . 4 2 1 . . . 2 . . . . . 1 . 2 2 . . . . . . 1 4 1 . . . . 6 Power 2 | . . 1 . . . . . . . . . . . . . . . . . . . . . . . . . . . . 1 Propulsion 6 | . . 1 2 . . . . 1 . . . . . . . . . . . . . . . 1 . 1 . . . . . Utility 9 | . . 1 . . . . . . . . . . . 1 . 1 2 . . . . . . . 1 . . . . . 3 Weapon 9 | . . 1 . 1 . . . 1 . . . . . . . 1 . . . . . . . . 3 . . . . . 2 Highest Loss Streak 5 | . . 3 1 1 . . . 1 . . . . . 1 . 2 2 . . . . . . 1 2 1 . . . . 5 To Critical Strikes . | . . . . . . . . . . . . . . . . . . . . . . . . . . . . . . . . Average Slot Usage (%) 93 | . 99 100 99 99 100 100 99 99 100 99 93 92 91 91 92 92 92 92 94 94 94 88 87 87 85 88 89 86 86 88 90 Engine 3 | . 14 14 11 11 11 11 8 9 9 9 7 7 7 6 . . . . . . . . . . . . . . . . . Core 1 | . . . . . . . . . . . . . . . . 2 6 5 5 5 5 2 . . . . . . . . . Reactor 2 | . . . . . . . . . . . . . . . 7 3 . . . . . 2 5 5 4 5 5 4 8 8 8 Treads 13 | . 3 18 13 11 11 11 13 7 9 10 7 7 7 9 7 15 20 22 23 23 23 17 16 16 16 14 15 14 13 13 12 Wheel 6 | . 24 10 19 21 22 22 13 19 17 15 8 7 7 4 7 4 . . . . . . . . . . . . . . . Device 13 | . 14 14 20 11 11 11 11 9 9 9 15 23 22 25 23 20 16 12 11 8 10 3 11 11 11 12 13 13 13 11 13 Storage 7 | . 14 14 11 11 11 11 9 9 9 9 7 7 7 8 15 9 6 5 5 5 5 9 5 5 5 5 5 8 4 4 4 Processor 11 | . . . 1 10 11 11 9 9 9 9 14 15 15 10 7 9 13 11 11 11 11 11 11 11 14 15 15 15 17 17 15 Hackware 5 | . . . . . . . 6 9 9 9 7 . . . . 5 6 9 5 12 11 9 5 5 5 7 5 4 8 8 9 Energy Gun 4 | . 12 26 11 10 11 11 10 17 11 9 7 7 5 . . 3 . . . . . . . . . . . . . . . Ballistic Gun 14 | . 14 2 9 10 11 11 14 8 15 16 12 15 15 7 7 9 11 18 20 17 14 2 22 20 18 21 19 18 13 17 22 Ballistic Cannon 2 | . . . . . . . . . . . 2 . . 6 15 3 7 1 1 5 4 10 . . . . . 2 4 2 1 Naked Turns . | . . . . . . . . . . . . . . . . . . . . . . . . . . . . . . . . Heaviest Build 180 | 12 31 31 59 58 55 55 62 65 63 64 106 108 108 128 128 130 114 125 127 130 135 141 132 129 133 132 140 152 167 167 180 Greatest Support 190 | 20 20 40 40 26 20 20 26 42 36 26 28 28 28 90 28 128 128 158 151 158 153 180 180 185 185 183 190 190 185 180 180 Greatest Overweight (x) 6 | . 1 1 2 2 2 2 3 6 2 3 3 3 3 4 4 4 . . . . . . . . . . . . . . . Average Overweight (x) 1 | . . . 1 2 2 2 2 1 1 2 2 3 3 3 4 1 . . . . . . . . . . . . . . . Largest Inventory Capacity 25 | 8 15 15 20 20 20 20 20 20 20 20 25 25 25 25 25 25 25 25 25 25 25 25 25 25 25 25 25 25 25 25 25 Average Capacity 22 | 6 11 15 17 20 20 20 20 20 20 20 20 25 25 25 25 25 25 25 25 25 25 25 25 25 25 25 25 25 25 25 25 Most Carried 25 | 7 15 14 20 20 20 20 20 20 20 20 25 25 25 25 25 25 25 25 25 25 25 25 25 25 25 25 25 25 25 25 25 Average Carried 22 | 4 9 12 16 19 19 19 19 19 19 20 20 24 24 24 24 24 23 24 24 24 24 24 24 24 23 24 24 24 23 24 24 Final Capacity 25 | 8 15 15 20 20 20 20 20 20 20 20 25 25 25 25 25 25 25 25 25 25 25 25 25 25 25 25 25 25 25 25 25 Final Carried 25 | 7 14 11 20 20 20 20 20 20 20 20 25 25 25 25 25 25 25 25 25 25 25 25 25 22 25 25 24 25 25 24 22 Class Distribution -------------------- 22% | Scavenger-Mutant 18% | Mutant 17% | Hacker-Skirmisher 14% | Scavenger-Skirmisher 11% | Hacker-Mutant 8% | Skirmisher 3% | Scavenger-Executioner 3% | Gunner Dominant Class ---------------- Mutant | -10/Materials Mutant | -10/Mines Scavenger-Mutant | -9/Materials Scavenger-Mutant | -9/Mines Scavenger-Mutant | -9/Exiles Scavenger-Skirmisher | -8/Mines Scavenger-Skirmisher | -8/Materials Mutant | -8/Garrison Skirmisher | -8/Materials Mutant | -8/Garrison Mutant | -7/Factory Skirmisher | -7/Lower Caves Skirmisher | -7/Lower Caves Gunner | -7/Data Miner Gunner | -6/Proximity Caves Hacker-Skirmisher | -6/Factory Hacker-Mutant | -6/Garrison Hacker-Skirmisher | -5/Factory Hacker-Mutant | -5/Garrison Hacker-Skirmisher | -5/Factory Hacker-Skirmisher | -5/Extension Hacker-Mutant | -5/Cetus Hacker-Skirmisher | -5/Archives Scavenger-Mutant | -5/Hub_04(d) Scavenger-Skirmisher | -5/Garrison Scavenger-Skirmisher | -4/Factory Scavenger-Skirmisher | -4/Garrison Scavenger-Mutant | -3/Research Scavenger-Mutant | -2/Research Scavenger-Mutant | -2/DSF Scavenger-Mutant | -1/Access Resources | -11 -10 -10 -9 -9 -9 -8 -8 -8 -8 -8 -7 -7 -7 -7 -6 -6 -6 -5 -5 -5 -5 -5 -5 -5 -5 -4 -4 -3 -2 -2 -1 ----------- Run | Scr Mat Min Mat Min Exi Min Mat Gar Mat Gar Fac Low Low Dat Pro Fac Gar Fac Gar Fac Ext Cet Arc Hub Gar Fac Gar Res Res DSF Acc Matter Collected 15007 | 285 214 126 574 199 . 23 233 663 362 103 265 209 77 308 429 490 436 562 727 355 447 241 166 801 1331 445 819 318 236 1059 2504 Remotely 6454 | . . . . . . . . . . . . 86 . 103 . 145 364 288 401 154 58 40 135 781 744 154 567 115 40 769 1510 Salvage Created 15597 | 131 281 84 1020 273 . 26 302 822 592 119 232 343 120 321 157 822 380 427 621 328 549 485 92 1109 1529 701 1025 102 291 787 1526 Parts 793 | 15 21 3 57 23 . 4 20 43 30 15 15 22 8 17 10 47 20 27 19 12 24 21 4 50 64 32 56 9 9 25 71 Haulers Intercepted 9 | . 1 . 3 . . . 1 . 1 . 1 . . . . 1 . . . . . . . . . . . . . 1 . Recyclers Shooed 4 | . . . 1 . . . . . . . . . . . . 1 . . . 2 . . . . . . . . . . . Parts Field Recycled 35 | . . . . . . . . . . . . . . . . 7 . 14 14 . . . . . . . . . . . . Retrieved Matter 436 | . . . . . . . . . . . . . . . . 99 . 74 263 . . . . . . . . . . . . Parts Self-Destructed 49 | . . . . . . . . . . . . 18 21 . 10 . . . . . . . . . . . . . . . . Prevented 3 | . . . . . . . . . . . . . 3 . . . . . . . . . . . . . . . . . . Kills | -11 -10 -10 -9 -9 -9 -8 -8 -8 -8 -8 -7 -7 -7 -7 -6 -6 -6 -5 -5 -5 -5 -5 -5 -5 -5 -4 -4 -3 -2 -2 -1 ------- Run | Scr Mat Min Mat Min Exi Min Mat Gar Mat Gar Fac Low Low Dat Pro Fac Gar Fac Gar Fac Ext Cet Arc Hub Gar Fac Gar Res Res DSF Acc Combat Hostiles Destroyed 235 | . 9 3 18 3 . . 9 25 7 6 1 9 2 4 4 9 9 6 12 3 7 6 1 15 22 4 18 1 . 7 15 Guns 150 | . 9 2 18 3 . . 2 23 6 2 1 9 2 2 1 4 3 6 6 2 3 . 1 11 11 2 4 1 . 7 9 Cannons 16 | . . . . . . . . . . . . . . 2 3 . 3 . 2 1 4 . . . . . . . . . 1 AOE 52 | . . . . . . . 7 2 . 4 . . . . . 5 3 . 4 . . . . 4 5 2 12 . . . 4 Classes Destroyed 21 | 2 4 1 3 . . . 1 1 . . 1 1 1 . 1 . . . . . 1 . . 2 1 . . . . 1 . Worker 11 | . . . . . . . 1 . 2 . 1 . . . . 2 . 2 . . . . . . . . . . . . 3 Builder 13 | . . . 1 3 . . 1 . . . . . . . . 3 . 3 . . . . . . . . . . . . 2 Tunneler 9 | 4 . . 1 3 . 1 . . . . . . . . . . . . . . . . . . . . . . . . . Hauler 9 | . 1 . 3 . . . 1 . 1 . 1 . . . . 1 . . . . . . . . . . . . . 1 . Recycler 15 | 1 . . . . . . . . 1 . 2 . . . . 2 . 1 . 1 . . . . . 2 . . 2 . 3 Operator 1 | . . . . . . . . . . . . . . . . . . . . . 1 . . . . . . . . . . Watcher 10 | . 1 . 1 . . . 1 . 1 . . . . . . 1 . . . . 2 1 . 2 . . . . . . . Swarmer 53 | . 6 . . . . . 2 10 . 4 . 4 . . . 4 . 5 . . . . . 2 3 . 9 . . . 4 Cutter 1 | . . . . . . . . 1 . . . . . . . . . . . . . . . . . . . . . . . Saboteur 1 | . . . . . . . . . . . . . . . . . . . . . . . . 1 . . . . . . . Grunt 91 | . 3 2 12 2 . . 7 10 3 . . 2 1 . . 1 6 . 4 2 1 . . 8 12 4 5 . . 4 2 Brawler 4 | . . . . . . . . . . . . . 1 . . . . . 2 . . . . . 1 . . . . . . Duelist 7 | . . . 1 1 . . . . . . . 1 . . . 2 . . 1 . . . . 1 . . . . . . . Protector 2 | . . . . . . . . . . . . . . . . . . . . . . . . 1 . . 1 . . . . Sentry 33 | . . . 5 . . . . 4 4 2 . 1 . . 1 1 2 1 2 1 3 . 1 . 5 . . . . . . Demolisher 2 | . . 1 . . . . . . . . . . . . . . . . . . . . . . . . 1 . . . . Specialist 2 | . . . . . . . . . . . . . . . . . . . . . . . . . . . . . . 2 . Hunter 14 | . . . . . . . . . . . . . . . 2 1 1 . 3 . 2 . . . . . . . . . 5 Programmer 6 | . . . . . . . . . . . 1 . . . 1 . . . . . 1 . . 1 . . 1 . . 1 . Behemoth 5 | . . . . . . . . . . . . . . . . . . . . . . . . . 1 . 1 1 . . 2 Cetus Guard 6 | . . . . . . . . . . . . . . . . . . . . . . 6 . . . . . . . . . Enhanced Grunt 6 | . . . . . . . . . . . . . . 4 . . . . . . . . . 2 . . . . . . . Lightning 1 | . . . . . . . . . . . . . . . . . . . . . . . . 1 . . . . . . . Tracker 1 | . . . . . . . . . . . . . . . . . . . . . . . . . . . . . . . 1 Combat Programmer 1 | . . . . . . . . . . . . . . . . . . . . . . . . . . . . . . . 1 Thief 1 | . . . . . . . . . . . . 1 . . . . . . . . . . . . . . . . . . . Best Kill Streak 12 | 5 4 2 8 4 . 1 12 4 3 6 2 4 2 3 2 9 7 7 6 2 3 4 1 9 8 4 9 1 2 6 5 Combat Bots Only 9 | . 3 2 7 3 . . 9 4 3 6 1 4 2 2 2 4 7 5 6 2 3 3 1 9 8 4 9 1 . 5 4 Max Kills in Single Turn 5 | 1 1 1 2 1 . 1 3 2 2 4 1 2 1 1 1 4 1 3 2 1 1 2 1 2 2 2 5 1 1 2 3 Gunslinging 1 | . . . 1 . . . . 1 . . . 1 . . . . . . . . . . . 1 1 . . . . 1 . Exploded 5 | . . . . . . . 2 2 . 4 . . . . . 4 1 . 2 . . . . 2 1 2 5 . . . 1 Melee . | . . . . . . . . . . . . . . . . . . . . . . . . . . . . . . . . Uniques/NPCs Destroyed 1 | . . . . . . . . . . . . . . 1 . . . . . . . . . . . . . . . . . Data Miner (-7/Data Miner) Combat | -11 -10 -10 -9 -9 -9 -8 -8 -8 -8 -8 -7 -7 -7 -7 -6 -6 -6 -5 -5 -5 -5 -5 -5 -5 -5 -4 -4 -3 -2 -2 -1 -------- Run | Scr Mat Min Mat Min Exi Min Mat Gar Mat Gar Fac Low Low Dat Pro Fac Gar Fac Gar Fac Ext Cet Arc Hub Gar Fac Gar Res Res DSF Acc Damage Taken 13387 | . 333 525 623 287 . . 141 776 154 44 58 231 62 393 296 638 687 264 421 27 246 240 72 1735 1554 159 613 31 . 335 2442 Core 1356 | . 50 105 99 91 . . 18 95 17 30 21 19 15 . 22 61 61 . 44 9 57 23 . 183 123 16 52 . . 20 125 Absorbed by Shields 2702 | . . . . . . . . . . . . . . 258 309 318 200 . . . . 46 . . . . 296 32 . 191 1052 Reduced by Siege Mode 724 | . . . . . . . . . . . . . . 25 . 32 50 8 5 . . . . 205 101 7 118 5 . . 168 Redirected to Shielding 214 | . . . . . . . . . . . . . . . . . 104 . 11 . . . . 33 66 . . . . . . Regen/Repaired (Parts) 447 | . . . . . . . . . . . . . . . . . . . . 447 . . . . . . . . . . . Core Remaining (%) 79 | 100 . 38 . . . 52 . . . 70 . . . . 89 . 85 . . . . . . . 56 . 94 100 . 98 92 Volleys Fired 692 | 5 31 12 51 26 . 1 19 62 27 7 15 13 4 13 14 25 33 23 33 12 20 4 5 44 46 17 20 30 5 12 63 Largest 7 | 2 2 2 2 2 . 2 3 3 3 3 3 3 3 3 3 3 3 4 4 4 4 2 4 4 4 5 5 5 3 6 7 Hottest 385 | 70 100 115 112 131 . 79 134 170 170 147 163 139 139 161 140 120 122 128 131 136 194 92 128 155 158 178 191 196 105 208 385 Shots Fired 1802 | 10 60 22 100 49 . 2 41 136 61 13 28 38 12 39 40 50 81 63 93 33 65 10 21 124 121 43 77 42 11 57 260 Gun 1438 | 10 58 22 98 41 . 2 35 127 61 11 18 38 12 13 13 41 47 53 72 21 48 . 20 103 93 33 64 13 9 53 209 Cannon 257 | . . . 2 8 . . . 4 . . 10 . . 22 27 8 28 9 10 12 15 1 1 16 7 8 1 28 2 2 36 Launcher 91 | . . . . . . . 6 5 . 2 . . . 4 . 1 6 1 11 . . 9 . 5 17 2 12 1 . . 9 Special 16 | . 2 . . . . . . . . . . . . . . . . . . . 2 . . . 4 . . . . 2 6 Kinetic 1275 | 5 29 1 48 18 . 1 25 35 28 5 19 26 8 28 40 31 75 54 81 33 60 . 21 103 96 33 64 15 9 54 230 Thermal 402 | 5 31 21 52 31 . 1 10 96 33 6 9 12 4 . . 5 . 8 1 . 3 1 . 16 4 8 1 26 2 1 15 Explosive 30 | . . . . . . . 6 5 . 2 . . . 4 . 1 2 1 6 . . . . . . . . . . . 3 Electromagnetic 81 | . . . . . . . . . . . . . . 7 . 13 4 . 5 . . 9 . 5 17 2 12 1 . . 6 Robot Hit Streak 48 | 3 14 11 16 20 . 1 12 13 13 3 6 12 11 14 6 10 14 17 17 12 26 28 12 41 18 21 29 30 31 18 48 Robot Miss Streak 5 | 1 5 3 4 2 . . 4 3 2 . 2 2 1 2 3 1 3 2 1 1 2 2 1 3 2 2 2 . 1 1 4 Penetration Max 1 | . . . . . . . . . 1 . 1 1 . . . 1 . . 1 1 1 . . 1 1 . . . . 1 . Secondary Targets 32 | . . 1 2 . . . . 8 2 . . 2 . . . 2 1 . 1 . . . . 4 2 1 2 . . 3 1 Max Gunslinging Chain 2 | . . 1 1 . . . . 1 1 . . 1 . . . 1 1 . 1 . . . . 1 1 1 1 . . 2 1 Shots Hit Robots 1113 | 6 33 17 72 33 . 1 24 78 36 2 12 23 11 29 22 34 51 36 58 16 50 7 17 74 76 28 54 13 8 41 151 Core Hits 587 | 6 16 5 31 10 . 1 31 39 15 5 5 14 6 18 6 29 23 17 35 11 23 10 7 42 42 14 40 5 4 16 61 Critical Kills 24 | . . . . . . . . 1 . . . . . 2 1 2 1 3 . . 3 . . 1 1 . 1 . . 2 6 Critical Parts Destroyed 38 | . . . . . . . . 1 . . 1 . . 1 2 2 1 4 3 1 7 . . 1 1 . 2 . . 2 9 Critical Strikes 96 | . 2 2 5 . . . . 6 3 . 1 . . 6 9 4 5 7 3 2 10 . . 2 2 . 4 . . 4 19 Burn 16 | . 2 2 5 . . . . 4 3 . . . . . . . . . . . . . . . . . . . . . . Destroy 68 | . . . . . . . . 2 . . 1 . . 4 3 4 2 7 3 1 10 . . 2 2 . 4 . . 4 19 Blast 12 | . . . . . . . . . . . . . . 2 6 . 3 . . 1 . . . . . . . . . . . Melee Attacks 2 | . . . . . . . . . . . . . 1 1 . . . . . . . . . . . . . . . . . Impact . | . . . . . . . . . . . . . . . . . . . . . . . . . . . . . . . . Slashing 2 | . . . . . . . . . . . . . 1 1 . . . . . . . . . . . . . . . . . Piercing . | . . . . . . . . . . . . . . . . . . . . . . . . . . . . . . . . Sneak Attacks 1 | . . . . . . . . . . . . . . 1 . . . . . . . . . . . . . . . . . Combat Hostiles . | . . . . . . . . . . . . . . . . . . . . . . . . . . . . . . . . Follow-up Attacks . | . . . . . . . . . . . . . . . . . . . . . . . . . . . . . . . . Damage Inflicted 36801 | 79 505 256 1255 584 . 16 1375 1885 835 295 317 553 242 793 484 1731 1779 819 2320 740 1012 1033 413 2676 3409 936 2448 457 200 1147 6207 Guns 22396 | 79 505 256 1255 505 . 16 352 1558 828 53 283 553 242 74 49 528 461 699 1268 460 521 . 374 2034 1888 686 1347 254 200 1058 4010 Cannons 3791 | . . . . 79 . . . . . . 34 . . 459 435 . 667 . 174 198 437 . 39 . 27 . . 203 . 89 950 Explosions 10312 | . . . . . . . 1023 327 . 242 . . . 177 . 1175 651 120 878 . . 1033 . 642 1494 202 1101 . . . 1247 Melee 83 | . . . . . . . . . . . . . . 83 . . . . . . . . . . . . . . . . . Ramming 219 | . . . . . . . . . 7 . . . . . . 28 . . . 82 54 . . . . 48 . . . . . Kinetic 21774 | 16 208 11 537 172 . . 214 444 437 . 160 267 167 424 484 260 1128 699 1442 658 887 . 413 2034 1915 686 1347 457 200 1147 4960 Thermal 4619 | 63 297 245 718 412 . 16 138 1114 391 53 157 286 75 . . 427 . 120 . . 71 36 . . . . . . . . . Explosive 4159 | . . . . . . . 1023 327 . 242 . . . 177 . 748 356 . 608 . . . . . . . . . . . 678 Electromagnetic 5947 | . . . . . . . . . . . . . . 109 . 268 295 . 270 . . 997 . 642 1494 202 1101 . . . 569 Impact . | . . . . . . . . . . . . . . . . . . . . . . . . . . . . . . . . Slashing 83 | . . . . . . . . . . . . . . 83 . . . . . . . . . . . . . . . . . Piercing . | . . . . . . . . . . . . . . . . . . . . . . . . . . . . . . . . Highest Corruption 86 | . . . . . . . . . . . 1 1 1 . 1 . . . . . . 11 11 28 86 . . . 1 1 8 Average Corruption 12 | . . . . . . . . . . . 1 1 1 . 1 . . . . . . 10 11 17 36 . . . 1 1 6 Corruption Purged 1 | . . . . . . . . . . . . . 1 . . . . . . . . . . . . . . . . . . Corruption Blocked . | . . . . . . . . . . . . . . . . . . . . . . . . . . . . . . . . Effects 107 | . . . . . . . . . . . 4 4 2 . . . . . . . . 5 6 28 48 . . . . 3 7 Message Errors 20 | . . . . . . . . . . . 1 1 1 . . . . . . . . 1 2 7 6 . . . . . 1 Matter Fused 26 | . . . . . . . . . . . . 1 . . . . . . . . . 1 2 6 12 . . . . 1 3 Heat Flow Errors 11 | . . . . . . . . . . . 2 1 . . . . . . . . . 1 . 1 6 . . . . . . Energy Discharges 9 | . . . . . . . . . . . . . . . . . . . . . . . . 4 3 . . . . 1 1 Parts Rejected 1 | . . . . . . . . . . . . . . . . . . . . . . . 1 . . . . . . . . Data Loss (minor) 12 | . . . . . . . . . . . . 1 1 . . . . . . . . . . 4 6 . . . . . . Data Loss (major) 4 | . . . . . . . . . . . . . . . . . . . . . . . . 2 2 . . . . . . Misfires 7 | . . . . . . . . . . . 1 . . . . . . . . . . 2 1 2 . . . . . 1 . Alerts 2 | . . . . . . . . . . . . . . . . . . . . . . . . . 2 . . . . . . Weapon Failures 15 | . . . . . . . . . . . . . . . . . . . . . . . . 2 11 . . . . . 2 Overload Shots . | . . . . . . . . . . . . . . . . . . . . . . . . . . . . . . . . Overflow Damage 332 | . . . . . . . 6 19 . 22 . . . . . 31 13 . 45 30 39 . . . 38 28 . . . . 61 Projectiles 52 | . . . . . . . . . . . . . . . . . 9 . . 6 37 . . . . . . . . . . Explosions 226 | . . . . . . . 6 19 . 22 . . . . . 31 4 . 45 . . . . . 38 . . . . . 61 Melee 54 | . . . . . . . . . . . . . . . . . . . . 24 2 . . . . 28 . . . . . Knockbacks 12 | . . . . . . . . . . . . . . 1 1 . 5 . . 2 1 . 1 . . 1 . . . . . Impact 3 | . . . . . . . . . . . . . . . . . . . . 1 1 . . . . 1 . . . . . Kinetic 9 | . . . . . . . . . . . . . . 1 1 . 5 . . 1 . . 1 . . . . . . . . Secondary . | . . . . . . . . . . . . . . . . . . . . . . . . . . . . . . . . Self-Inflicted Damage 458 | . . . . . . . 17 26 3 . . . . . . 196 . . 20 . . 35 . 140 21 . . . . . . Shots 10 | . . . . . . . 1 1 . . . . . . . 3 . . 1 . . 1 . 2 1 . . . . . . Rammed 10 | . . . . . . . . . 1 . . . . . . 2 . . . 3 3 . . . . 1 . . . . . Targets Rammed 10 | . . . . . . . . . 1 . . . . . . 2 . . . 3 3 . . . . 1 . . . . . Kicked . | . . . . . . . . . . . . . . . . . . . . . . . . . . . . . . . . Crushed . | . . . . . . . . . . . . . . . . . . . . . . . . . . . . . . . . Highest Temperature 560 | 50 126 138 17 105 . 12 30 217 151 72 233 238 27 397 292 220 245 54 168 85 269 248 144 560 275 146 308 167 42 114 538 Average Temperature 80 | 23 45 51 5 32 . 8 14 62 50 33 73 79 18 120 116 74 70 31 46 43 71 83 57 129 101 52 124 44 20 41 128 Received Heat Transfer 2419 | . 117 123 222 138 . . 72 324 72 9 . 48 36 . 12 33 254 9 54 . 18 21 . 327 351 54 83 . . 34 8 Effects 4 | . . . . . . . . . . . . . . . . . . . . . . . . . 1 . . . . . 3 Shutdowns 1 | . . . . . . . . . . . . . . . . . . . . . . . . . . . . . . . 1 Energy Bleed 2 | . . . . . . . . . . . . . . . . . . . . . . . . . 1 . . . . . 1 Interference 1 | . . . . . . . . . . . . . . . . . . . . . . . . . . . . . . . 1 Siege Activations 33 | . . . . . . . . . . . . . . 2 . 1 1 2 2 . 1 . . 5 4 1 4 1 . . 9 Total Turns 473 | . . . . . . . . . . . . . . 38 . 15 52 19 23 . 1 . . 67 65 16 68 12 . . 97 Longest Duration 52 | . . . . . . . . . . . . . . 19 . 15 52 16 14 . 1 . . 22 32 16 38 12 . . 29 Robots Corrupted 15 | . . . . . . . . . . . . . . . . . . . . . . 6 . . 6 . 2 . . . 1 Combat Hostiles 15 | . . . . . . . . . . . . . . . . . . . . . . 6 . . 6 . 2 . . . 1 Parts Fried 31 | . . . . . . . . . . . . . . . . 3 1 . 1 . 2 7 . 4 5 . 7 . . . 1 Impact Corruptions 3 | . . . . . . . . . . . . . . . . . . . . 1 1 . . . . 1 . . . . . Robots Melted 2 | . . 1 . . . . . . 1 . . . . . . . . . . . . . . . . . . . . . . Combat Hostiles 2 | . . 1 . . . . . . 1 . . . . . . . . . . . . . . . . . . . . . . Parts Melted 16 | 1 . . 1 2 . . . 7 3 . . . . . . . . . . . . . . . . . . . . 1 1 Heat Transferred 9683 | 185 925 814 1887 814 . 37 296 2386 888 74 222 444 111 . . 350 . 100 . . 100 50 . . . . . . . . . Parts Sabotaged . | . . . . . . . . . . . . . . . . . . . . . . . . . . . . . . . . Parts Stolen . | . . . . . . . . . . . . . . . . . . . . . . . . . . . . . . . . Parts Stripped . | . . . . . . . . . . . . . . . . . . . . . . . . . . . . . . . . Power Chain Reactions 4 | . . . . . . . . . . . . . . . . 2 . . . . . 1 . . . . 1 . . . . Missiles Intercepted . | . . . . . . . . . . . . . . . . . . . . . . . . . . . . . . . . Alert | -11 -10 -10 -9 -9 -9 -8 -8 -8 -8 -8 -7 -7 -7 -7 -6 -6 -6 -5 -5 -5 -5 -5 -5 -5 -5 -4 -4 -3 -2 -2 -1 ------- Run | Scr Mat Min Mat Min Exi Min Mat Gar Mat Gar Fac Low Low Dat Pro Fac Gar Fac Gar Fac Ext Cet Arc Hub Gar Fac Gar Res Res DSF Acc Peak Influence 1328 | 25 333 174 653 220 . 5 446 1118 700 353 296 . . . . 158 366 382 474 334 104 358 199 1328 825 541 276 157 32 188 496 Initial 544 | . 16 129 67 120 . . 1 289 544 167 184 . . . . 9 80 191 171 248 . 36 143 69 493 432 45 155 3 24 112 Average 275 | 9 208 152 272 144 . 4 216 705 385 279 182 . . . . 45 251 241 279 236 40 168 185 590 676 434 179 17 22 71 192 Maximum Alert Level 4 | . 1 . 2 1 . . 2 4 3 1 1 . . . . . 1 1 2 1 . 1 . 4 3 2 1 . . . 2 Low Security (%) 46 | 100 40 100 42 51 . 100 52 . 22 34 44 . . . . 100 39 34 8 12 100 57 100 22 . 3 47 100 100 100 57 Level 1 28 | . 59 . 34 48 . . 10 15 30 65 55 . . . . . 60 65 69 87 . 42 . 14 . 14 52 . . . 27 Level 2 16 | . . . 22 . . . 37 36 45 . . . . . . . . . 22 . . . . 36 55 81 . . . . 14 Level 3 6 | . . . . . . . . 36 2 . . . . . . . . . . . . . . 10 44 . . . . . . Level 4 1 | . . . . . . . . 10 . . . . . . . . . . . . . . . 15 . . . . . . . Level 5 . | . . . . . . . . . . . . . . . . . . . . . . . . . . . . . . . . High Security . | . . . . . . . . . . . . . . . . . . . . . . . . . . . . . . . . Max Security . | . . . . . . . . . . . . . . . . . . . . . . . . . . . . . . . . Squads Dispatched 33 | . 2 . 4 . . . 4 . . . 1 . . . . 3 . 1 . 2 . . . 6 . 2 . 2 1 . 5 Investigation 7 | . 1 . 1 . . . . . . . 1 . . . . . . . . 1 . . . . . 2 . . 1 . . Extermination 1 | . . . . . . . . . . . . . . . . . . . . . . . . 1 . . . . . . . Reinforcement 15 | . 1 . 3 . . . 2 . . . . . . . . 1 . 1 . 1 . . . 2 . . . 2 . . 2 Assault 2 | . . . . . . . . . . . . . . . . . . . . . . . . 2 . . . . . . . Garrison 3 | . . . . . . . 2 . . . . . . . . . . . . . . . . 1 . . . . . . . Intercept 5 | . . . . . . . . . . . . . . . . 2 . . . . . . . . . . . . . . 3 Searches Triggered . | . . . . . . . . . . . . . . . . . . . . . . . . . . . . . . . . Construction Impeded 3 | . . . . . . . 1 . . . . . . . . . . . . . . . . 1 . . . . . . 1 Haulers Reinforced 2 | . . . . . . . . . . . . . . . . 1 . . . . . . . . . . . . . . 1 Active Scanning Responses . | . . . . . . . . . . . . . . . . . . . . . . . . . . . . . . . . Cargo Convoy Interrupts . | . . . . . . . . . . . . . . . . . . . . . . . . . . . . . . . . Stealth | -11 -10 -10 -9 -9 -9 -8 -8 -8 -8 -8 -7 -7 -7 -7 -6 -6 -6 -5 -5 -5 -5 -5 -5 -5 -5 -4 -4 -3 -2 -2 -1 --------- Run | Scr Mat Min Mat Min Exi Min Mat Gar Mat Gar Fac Low Low Dat Pro Fac Gar Fac Gar Fac Ext Cet Arc Hub Gar Fac Gar Res Res DSF Acc Distress Signals 17 | . . . 4 . . . 4 . 3 . . . . . . . . . . 1 1 2 . 1 . . . . . . 1 Communications Jammed 117 | . . . . . . . . . . . . . . . . 60 . 1 . . 8 . . 1 . . . . . . 47 Distress Signals 116 | . . . . . . . . . . . . . . . . 60 . . . . 8 . . 1 . . . . . . 47 Times Spotted 328 | . 14 6 38 3 . . 19 27 11 4 3 9 5 4 4 15 10 8 12 5 13 12 2 32 20 5 11 1 . 8 27 Peak Tracking Total 11 | . 5 7 10 3 . . 7 4 2 6 2 4 3 2 2 6 6 4 4 2 5 5 1 11 8 3 9 1 . 5 7 Tactical Retreats 14 | . . 1 4 . . . 1 3 1 . . . . . . . . 1 . . . . . . . 1 . . . . 2 Traps | -11 -10 -10 -9 -9 -9 -8 -8 -8 -8 -8 -7 -7 -7 -7 -6 -6 -6 -5 -5 -5 -5 -5 -5 -5 -5 -4 -4 -3 -2 -2 -1 ------- Run | Scr Mat Min Mat Min Exi Min Mat Gar Mat Gar Fac Low Low Dat Pro Fac Gar Fac Gar Fac Ext Cet Arc Hub Gar Fac Gar Res Res DSF Acc Traps Triggered 34 | . . . 1 . . . . 10 . 1 2 . . . . 1 2 . 3 . . . . 1 3 . 7 1 1 . 1 Indirectly 9 | . . . . . . . . . . . . . . . . . . . . . . . . 1 2 . 5 . . . 1 Trap Hack Attempts . | . . . . . . . . . . . . . . . . . . . . . . . . . . . . . . . . Triggered . | . . . . . . . . . . . . . . . . . . . . . . . . . . . . . . . . Disarmed . | . . . . . . . . . . . . . . . . . . . . . . . . . . . . . . . . Reprogrammed . | . . . . . . . . . . . . . . . . . . . . . . . . . . . . . . . . Reused . | . . . . . . . . . . . . . . . . . . . . . . . . . . . . . . . . Traps Extracted . | . . . . . . . . . . . . . . . . . . . . . . . . . . . . . . . . Installed . | . . . . . . . . . . . . . . . . . . . . . . . . . . . . . . . . Triggered 2 | . . . . . . . . . . . . . 2 . . . . . . . . . . . . . . . . . . Exploded 1 | . . . . . 1 . . . . . . . . . . . . . . . . . . . . . . . . . . Machines | -11 -10 -10 -9 -9 -9 -8 -8 -8 -8 -8 -7 -7 -7 -7 -6 -6 -6 -5 -5 -5 -5 -5 -5 -5 -5 -4 -4 -3 -2 -2 -1 ---------- Run | Scr Mat Min Mat Min Exi Min Mat Gar Mat Gar Fac Low Low Dat Pro Fac Gar Fac Gar Fac Ext Cet Arc Hub Gar Fac Gar Res Res DSF Acc Machines Disabled 66 | . . . . . . . . . 3 1 . . . . . 10 3 2 4 2 1 . . 31 2 2 1 . . 1 3 Max in Single Turn 14 | . . . . . . . . . 1 1 . . . . . 4 1 2 1 1 . . . 14 1 1 1 . . 1 1 Garrison Access 7 | . . . . . . . . . . . . . . . . 1 . 1 . . . . . 1 . . . 1 1 . 2 Garrison Relay 6 | . . . . . . . . 1 . . . . . . . . 3 . 2 . . . . . . . . . . . . Network Hub 2 | . . . . . . . . . . . . . . . . . . . . . . . . 2 . . . . . . . Machines Sabotaged . | . . . . . . . . . . . . . . . . . . . . . . . . . . . . . . . . Garrisons Compromised . | . . . . . . . . . . . . . . . . . . . . . . . . . . . . . . . . Overloaded Fab Kills . | . . . . . . . . . . . . . . . . . . . . . . . . . . . . . . . . Hacking | -11 -10 -10 -9 -9 -9 -8 -8 -8 -8 -8 -7 -7 -7 -7 -6 -6 -6 -5 -5 -5 -5 -5 -5 -5 -5 -4 -4 -3 -2 -2 -1 --------- Run | Scr Mat Min Mat Min Exi Min Mat Gar Mat Gar Fac Low Low Dat Pro Fac Gar Fac Gar Fac Ext Cet Arc Hub Gar Fac Gar Res Res DSF Acc Machines Accessed 91 | . 6 . 6 . 1 . 4 2 8 1 5 . 2 2 . 6 1 5 . 6 7 1 . 5 3 5 1 4 5 . 5 Terminals 57 | . 6 . 4 . . . 2 2 6 1 2 . . . . 3 1 1 . 3 7 1 . 4 3 1 1 3 3 . 3 Fabricators 7 | . . . . . . . . . . . 3 . . . . . . . . 1 . . . . . 2 . . 1 . . Repair Stations 3 | . . . . . . . . . . . . . . . . . . 1 . 2 . . . . . . . . . . . Recycling Units 7 | . . . 2 . . . 1 . 1 . . . . . . 1 . 1 . . . . . . . 1 . . . . . Scanalyzers . | . . . . . . . . . . . . . . . . . . . . . . . . . . . . . . . . Garrison Access 12 | . . . . . . . 1 . 1 . . . . . . 2 . 2 . . . . . 1 . 1 . 1 1 . 2 Total Hacks 258 | . 31 . 25 . 1 . 8 4 24 1 12 . 2 20 . 12 1 11 . 16 9 2 . 12 5 21 1 9 20 . 11 Successful 180 | . 19 . 14 . 1 . 4 2 15 1 6 . 2 20 . 11 1 6 . 16 9 1 . 6 3 14 1 7 13 . 8 Failed 78 | . 12 . 11 . . . 4 2 9 . 6 . . . . 1 . 5 . . . 1 . 6 2 7 . 2 7 . 3 Catastrophic 10 | . . . 3 . . . . . 1 . 2 . . . . . . . . . . . . 1 . . . 1 1 . 1 Database Lockouts . | . . . . . . . . . . . . . . . . . . . . . . . . . . . . . . . . Manual 132 | . 28 . 15 . 1 . 7 . 15 . 6 . . . . 9 . 3 . 5 4 1 . 11 . 9 . 3 12 . 3 Terminals 168 | . 31 . 21 . . . 5 4 19 1 6 . . . . 8 1 2 . 8 9 2 . 11 5 7 1 7 12 . 8 Fabricators 27 | . . . . . . . . . . . 6 . . . . . . . . 5 . . . . . 9 . . 7 . . Repair Stations 6 | . . . . . . . . . . . . . . . . . . 3 . 3 . . . . . . . . . . . Recycling Units 20 | . . . 4 . . . 2 . 4 . . . . . . 2 . 4 . . . . . . . 4 . . . . . Scanalyzers . | . . . . . . . . . . . . . . . . . . . . . . . . . . . . . . . . Garrison Access 14 | . . . . . . . 1 . 1 . . . . . . 2 . 2 . . . . . 1 . 1 . 2 1 . 3 Terminal Hacks 96 | . 13 . 8 . 1 . 1 2 6 1 3 . 2 20 . 3 1 1 . 6 6 1 . 3 3 4 1 3 3 . 4 Part Schematic 17 | . 2 . . . . . . . . . . . . 10 . 1 . 1 . 2 1 . . . . . . . . . . Robot Schematic 7 | . . . . . . . . . . . . . . 7 . . . . . . . . . . . . . . . . . Robot Analysis 8 | . 4 . 2 . . . 1 . 1 . . . . . . . . . . . . . . . . . . . . . . Prototype ID Bank 9 | . 5 . 1 . . . . . . . . . . 3 . . . . . . . . . . . . . . . . . Open Door 10 | . . . . . . . . . . . . . 2 . . . . . . 1 3 1 . . 1 . . 1 . . 1 Open DSF 1 | . . . . . . . . . . . . . . . . . . . . . . . . . . . . . 1 . . Level Access Points 3 | . . . . . . . . . . . 1 . . . . . . . . . . . . . . . . 1 1 . . Branch Access Points 2 | . . . 1 . . . . . . . 1 . . . . . . . . . . . . . . . . . . . . Emergency Access Points 3 | . . . . . . . . 1 . . . . . . . . 1 . . . . . . . 1 . . . . . . Terminal Index 4 | . 1 . 1 . . . . . 1 . 1 . . . . . . . . . . . . . . . . . . . . Garrison Index 1 | . . . . . . . . . 1 . . . . . . . . . . . . . . . . . . . . . . Unreport Threat 17 | . . . 2 . . . . . 3 . . . . . . . . . . 3 1 . . 3 . 2 . 1 . . 2 Locate Traps 6 | . 1 . 1 . . . . . . . . . . . . 1 . . . . . . . . . 1 . . 1 . 1 Registered Components 2 | . . . . . . . . . . . . . . . . . . . . . 1 . . . . 1 . . . . . Zone Layout 1 | . . . . . . . . . . . . . . . . 1 . . . . . . . . . . . . . . . Garrison Registry 3 | . . . . . . . . 1 . 1 . . . . . . . . . . . . . . . . 1 . . . . Patrol Navigation 1 | . . . . . . . . . . . . . . . . . . . . . . . . . 1 . . . . . . EX-Prototype ID Bank 1 | . . . . . 1 . . . . . . . . . . . . . . . . . . . . . . . . . . Fabricator Hacks 12 | . . . . . . . . . . . 2 . . . . . . . . 4 . . . . . 4 . . 2 . . Load Schematic 6 | . . . . . . . . . . . 1 . . . . . . . . 2 . . . . . 2 . . 1 . . Build 6 | . . . . . . . . . . . 1 . . . . . . . . 2 . . . . . 2 . . 1 . . Repair Station Hacks 4 | . . . . . . . . . . . . . . . . . . 1 . 3 . . . . . . . . . . . Scan Component 3 | . . . . . . . . . . . . . . . . . . 1 . 2 . . . . . . . . . . . Repair 1 | . . . . . . . . . . . . . . . . . . . . 1 . . . . . . . . . . . Recycling Unit Hacks 2 | . . . . . . . . . 1 . . . . . . . . 1 . . . . . . . . . . . . . Retrieve Components 2 | . . . . . . . . . 1 . . . . . . . . 1 . . . . . . . . . . . . . Scanalyzer . | . . . . . . . . . . . . . . . . . . . . . . . . . . . . . . . . Garrison Access Hacks 14 | . . . . . . . 1 . 1 . . . . . . 2 . 2 . . . . . 1 . 1 . 2 1 . 3 Unlock Access 6 | . . . . . . . 1 . 1 . . . . . . 1 . 1 . . . . . 1 . 1 . . . . . Seal Access 6 | . . . . . . . . . . . . . . . . 1 . 1 . . . . . . . . . 1 1 . 2 Coupler Status 2 | . . . . . . . . . . . . . . . . . . . . . . . . . . . . 1 . . 1 Unauthorized Hacks 52 | . 6 . 6 . . . 2 . 7 . 1 . . . . 6 . 1 . 3 3 . . 2 . 5 . 2 7 . 1 Terminals 33 | . 6 . 2 . . . 1 . 4 . 1 . . . . 5 . . . 2 3 . . 2 . 1 . 2 3 . 1 Track 9 | . 3 . . . . . . . 1 . . . . . . 2 . . . . . . . 2 . . . . 1 . . Assimilate 1 | . . . . . . . . . . . . . . . . . . . . 1 . . . . . . . . . . . Botnet 16 | . 2 . 2 . . . 1 . 2 . 1 . . . . 2 . . . 1 2 . . . . . . 1 1 . 1 Disrupt 1 | . . . . . . . . . . . . . . . . . . . . . . . . . . 1 . . . . . Operators 6 | . 1 . . . . . . . 1 . . . . . . 1 . . . . 1 . . . . . . 1 1 . . Fabricators 6 | . . . . . . . . . . . . . . . . . . . . 1 . . . . . 1 . . 4 . . Prioritize 2 | . . . . . . . . . . . . . . . . . . . . 1 . . . . . . . . 1 . . Liberate 1 | . . . . . . . . . . . . . . . . . . . . . . . . . . . . . 1 . . Fabnet 2 | . . . . . . . . . . . . . . . . . . . . . . . . . . 1 . . 1 . . Haulers 1 | . . . . . . . . . . . . . . . . . . . . . . . . . . . . . 1 . . Repair Stations . | . . . . . . . . . . . . . . . . . . . . . . . . . . . . . . . . Recycling Units 13 | . . . 4 . . . 1 . 3 . . . . . . 1 . 1 . . . . . . . 3 . . . . . Reject 4 | . . . 2 . . . . . 1 . . . . . . . . . . . . . . . . 1 . . . . . Recyclers 6 | . . . 1 . . . 1 . 1 . . . . . . 1 . 1 . . . . . . . 1 . . . . . Mask 3 | . . . 1 . . . . . 1 . . . . . . . . . . . . . . . . 1 . . . . . Scanalyzers . | . . . . . . . . . . . . . . . . . . . . . . . . . . . . . . . . Garrison Access . | . . . . . . . . . . . . . . . . . . . . . . . . . . . . . . . . Data Cores Recovered 2 | . . . . . . . . . . . . . . . . . . . . 1 1 . . . . . . . . . . Used 1 | . . . . . . . . . . . . . . . . . . . . . 1 . . . . . . . . . . Hacking Detections 64 | . 6 . 5 . . . 4 2 8 1 5 . . . . 4 1 4 . 3 3 . . 5 1 5 . 1 3 . 3 Full Trace Events 6 | . 1 . . . . . . . . . 1 . . . . . . . . 1 . . . . . 2 . . 1 . . Feedback Events . | . . . . . . . . . . . . . . . . . . . . . . . . . . . . . . . . Feedback Blocked . | . . . . . . . . . . . . . . . . . . . . . . . . . . . . . . . . Robot Schematics Acquired 7 | . . . . . . . . . . . . . . 7 . . . . . . . . . . . . . . . . . Robots Built 2 | . . . . . . . . . . . . . . . . . . . . 2 . . . . . . . . . . . Authchips 1 | . . . . . . . . . . . . . . . . . . . . 1 . . . . . . . . . . . Time 76 | . . . . . . . . . . . . . . . . . . . . 76 . . . . . . . . . . . Total Robot Build Rating 10 | . . . . . . . . . . . . . . . . . . . . 10 . . . . . . . . . . . Part Schematics Acquired 17 | . 2 . . . . . . . . . . . . 10 . 1 . 1 . 2 1 . . . . . . . . . . Parts Built 9 | . . . . . . . . . . . 1 . . . . . . . . 2 . . . . . 4 . . 2 . . Authchips . | . . . . . . . . . . . . . . . . . . . . . . . . . . . . . . . . Time 216 | . . . . . . . . . . . 17 . . . . . . . . 29 . . . . . 134 . . 36 . . Total Part Build Rating 45 | . . . . . . . . . . . 1 . . . . . . . . 14 . . . . . 24 . . 6 . . Parts Repaired 1 | . . . . . . . . . . . . . . . . . . . . 1 . . . . . . . . . . . Time 18 | . . . . . . . . . . . . . . . . . . . . 18 . . . . . . . . . . . Parts Recycled . | . . . . . . . . . . . . . . . . . . . . . . . . . . . . . . . . Recycled Matter . | . . . . . . . . . . . . . . . . . . . . . . . . . . . . . . . . Retrieved Matter . | . . . . . . . . . . . . . . . . . . . . . . . . . . . . . . . . Retrieved Components 3 | . . . . . . . . . 1 . . . . . . . . 2 . . . . . . . . . . . . . Parts Scanalyzed . | . . . . . . . . . . . . . . . . . . . . . . . . . . . . . . . . Part Schematics Acquired . | . . . . . . . . . . . . . . . . . . . . . . . . . . . . . . . . Parts Damaged . | . . . . . . . . . . . . . . . . . . . . . . . . . . . . . . . . Bothacking | -11 -10 -10 -9 -9 -9 -8 -8 -8 -8 -8 -7 -7 -7 -7 -6 -6 -6 -5 -5 -5 -5 -5 -5 -5 -5 -4 -4 -3 -2 -2 -1 ------------ Run | Scr Mat Min Mat Min Exi Min Mat Gar Mat Gar Fac Low Low Dat Pro Fac Gar Fac Gar Fac Ext Cet Arc Hub Gar Fac Gar Res Res DSF Acc Used RIF Installer 7 | . . . . . . . . 2 . 1 . . . . . . 1 . 1 . . . . . 1 . 1 . . . . Threat Obfuscator 2 | . . . . . . . . . . 1 . . . . . . . . 1 . . . . . . . . . . . . Signal Jammer 1 | . . . . . . . . . . . . . . . . . . . . . . . . . . . 1 . . . . Zone Cloak 1 | . . . . . . . . . . . . . . . . . . . . . . . . . 1 . . . . . . Robot Detection 1 | . . . . . . . . 1 . . . . . . . . . . . . . . . . . . . . . . . Alert ID Control 1 | . . . . . . . . . . . . . . . . . 1 . . . . . . . . . . . . . . Robots Hacked 9 | . . . . . . . . . . . . . . . . . . . . . 2 . . . . . . . . 2 5 Non-combat 3 | . . . . . . . . . . . . . . . . . . . . . . . . . . . . . . . 3 Combat 4 | . . . . . . . . . . . . . . . . . . . . . . . . . . . . . . 2 2 Robot Hacks Applied 7 | . . . . . . . . . . . . . . . . . . . . . . . . . . . . . . 2 5 drop_inventory 1 | . . . . . . . . . . . . . . . . . . . . . . . . . . . . . . . 1 map_route 2 | . . . . . . . . . . . . . . . . . . . . . . . . . . . . . . . 2 mark_system 1 | . . . . . . . . . . . . . . . . . . . . . . . . . . . . . . . 1 formatsys_high 3 | . . . . . . . . . . . . . . . . . . . . . . . . . . . . . . 2 1 Manual 2 | . . . . . . . . . . . . . . . . . . . . . 2 . . . . . . . . . . Relay Couplers Released 32 | . . . . . . . . 5 . . . . . . . . 13 . 10 . . . . . . . 4 . . . . Machine Destruction 28 | . . . . . . . . 5 . . . . . . . . 13 . 10 . . . . . . . . . . . . Programmers 4 | . . . . . . . . . . . . . . . . . . . . . . . . . . . 4 . . . . Attached 6 | . . . . . . . . . . . . . . . . . . 1 . . . . . . . . . . 1 3 1 Fabnet Peak Effective % 3 | . . . . . . . . . . . . . . . . . . . . . . . . . . . . 3 1 1 3 Robots Rewired 3 | . . . . . . . . 3 . . . . . . . . . . . . . . . . . . . . . . . Allies Hacked . | . . . . . . . . . . . . . . . . . . . . . . . . . . . . . . . . Hacks Repelled . | . . . . . . . . . . . . . . . . . . . . . . . . . . . . . . . . Allies | -11 -10 -10 -9 -9 -9 -8 -8 -8 -8 -8 -7 -7 -7 -7 -6 -6 -6 -5 -5 -5 -5 -5 -5 -5 -5 -4 -4 -3 -2 -2 -1 -------- Run | Scr Mat Min Mat Min Exi Min Mat Gar Mat Gar Fac Low Low Dat Pro Fac Gar Fac Gar Fac Ext Cet Arc Hub Gar Fac Gar Res Res DSF Acc Total Allies 23 | . . . . 4 . . . 3 . . . . . . . . . . . 3 5 5 . . . . . . . 2 1 Largest Group 9 | . . . . 4 4 3 3 3 . . . . . . . . . . . 3 5 9 5 3 . . . . . 2 3 Highest-Rated Group 763 | . . . . 71 71 40 40 48 . . . . . . . . . . . 108 316 763 465 281 . . . . . 242 300 Highest-Rated Ally 178 | . . . . 31 31 16 16 16 . . . . . . . . . . . 41 159 159 159 96 . . . . . 178 178 Total Orders 4 | . . . . . . . . . . . . . . . . . . . . . 1 . . 2 . . . . . . 1 STAY 3 | . . . . . . . . . . . . . . . . . . . . . 1 . . 1 . . . . . . 1 FOLLOW 1 | . . . . . . . . . . . . . . . . . . . . . . . . 1 . . . . . . . Ally Attacks 256 | . . . . . . . 51 15 . . . . . . . . . . . 17 21 36 9 54 . . . . . 15 38 Total Damage 8550 | . . . . . . . 549 173 . . . . . . . . . . . 734 930 1442 353 1884 . . . . . 777 1708 Kills 49 | . . . . . . . 8 2 . . . . . . . . . . . 6 2 10 3 8 . . . . . . 10 Allies Corrupted 1 | . . . . . . . . . . . . . . . . . . . . . . . . 1 . . . . . . . Allies Melted 1 | . . . . . . . . . . . . . . . . . . . . . . 1 . . . . . . . . . Intel | -11 -10 -10 -9 -9 -9 -8 -8 -8 -8 -8 -7 -7 -7 -7 -6 -6 -6 -5 -5 -5 -5 -5 -5 -5 -5 -4 -4 -3 -2 -2 -1 ------- Run | Scr Mat Min Mat Min Exi Min Mat Gar Mat Gar Fac Low Low Dat Pro Fac Gar Fac Gar Fac Ext Cet Arc Hub Gar Fac Gar Res Res DSF Acc Robot Analysis Total 139 | . 4 . 2 . . . 1 . 1 . . . . 131 . . . . . . . . . . . . . . . . . Derelict Logs Recovered 6 | . . . . 3 . . . . . . . 1 1 . 1 . . . . . . . . . . . . . . . . Drone Launches . | . . . . . . . . . . . . . . . . . . . . . . . . . . . . . . . . Drone Recoveries . | . . . . . . . . . . . . . . . . . . . . . . . . . . . . . . . . Exploration | -11 -10 -10 -9 -9 -9 -8 -8 -8 -8 -8 -7 -7 -7 -7 -6 -6 -6 -5 -5 -5 -5 -5 -5 -5 -5 -4 -4 -3 -2 -2 -1 ------------- Run | Scr Mat Min Mat Min Exi Min Mat Gar Mat Gar Fac Low Low Dat Pro Fac Gar Fac Gar Fac Ext Cet Arc Hub Gar Fac Gar Res Res DSF Acc Turns Passed 15680 | 68 398 72 668 525 288 110 250 1397 566 166 672 438 469 292 500 925 527 616 512 572 750 319 142 540 716 488 340 945 308 234 867 Spaces Moved 8756 | 49 293 17 392 374 252 81 124 934 368 107 453 273 274 124 284 510 263 297 227 310 405 173 69 231 311 258 137 522 165 97 382 Core 19 | 19 . . . . . . . . . . . . . . . . . . . . . . . . . . . . . . . Treads 4120 | . . 1 3 . . . . . . . . . . 21 . 248 263 297 227 310 405 173 69 231 311 258 137 522 165 97 382 Legs . | . . . . . . . . . . . . . . . . . . . . . . . . . . . . . . . . Wheels 4617 | 30 293 16 389 374 252 81 124 934 368 107 453 273 274 103 284 262 . . . . . . . . . . . . . . . Hover . | . . . . . . . . . . . . . . . . . . . . . . . . . . . . . . . . Flight . | . . . . . . . . . . . . . . . . . . . . . . . . . . . . . . . . Fastest Speed 50 | 50 80 95 95 110 110 110 120 101 101 120 120 145 145 145 160 135 160 160 160 160 160 160 160 160 160 160 160 160 150 150 150 Average Speed 140 | 68 89 98 108 112 110 110 127 116 119 122 129 145 145 168 160 155 160 160 160 160 160 160 160 160 160 160 160 160 156 150 150 Slowest Speed 245 | 80 95 160 160 120 110 110 145 170 120 145 145 145 145 245 160 160 160 160 160 160 160 160 160 160 160 160 160 160 160 150 150 Overloaded Moves . | . . . . . . . . . . . . . . . . . . . . . . . . . . . . . . . . Propulsion Burnouts . | . . . . . . . . . . . . . . . . . . . . . . . . . . . . . . . . Robots Hopped . | . . . . . . . . . . . . . . . . . . . . . . . . . . . . . . . . Cave-ins Triggered . | . . . . . . . . . . . . . . . . . . . . . . . . . . . . . . . . Exploration Rate (%) 43 | 3 64 11 50 77 68 36 32 92 43 38 22 56 49 78 46 22 50 9 39 13 62 82 86 39 55 9 31 25 7 77 15 Regions Visited 31 Branch Regions 12 Pre-discovered Areas 24 | . . . . . . . . . . . . . . 24 . . . . . . . . . . . . . . . . . Known Exits Taken 11 | . . . 1 . . . 1 . 1 . 1 . . . 1 1 . 1 . . . . . 1 . 1 . 1 1 . . Unknown Exits Taken 13 | 1 1 1 . 1 1 1 . . . . . 1 1 1 . . . . . 1 1 1 1 . . . . . . . . Scrap Searched 10 | . . . . 2 . 1 . . . . . 2 1 . 4 . . . . . . . . . . . . . . . . Spaces Dug 117 | . 2 . 2 3 . . . . 5 . 8 . 1 . 2 8 . 15 2 5 . . . 14 . 9 . 25 2 1 13 Terrain Destroyed 730 | . 2 . 2 5 . . 24 17 15 17 10 5 2 14 12 56 17 36 30 6 7 7 5 323 4 11 2 25 2 9 65 Melee 1 | . . . . . . . . . . . . . 1 . . . . . . . . . . . . . . . . . . Projectile 216 | . 2 . 2 5 . . . . 15 3 10 5 1 2 12 8 6 21 7 6 6 1 5 26 4 11 2 25 2 7 22 AOE 508 | . . . . . . . 24 17 . 14 . . . 12 . 48 11 15 23 . . 6 . 297 . . . . . . 41 Terrain Rammed . | . . . . . . . . . . . . . . . . . . . . . . . . . . . . . . . . Walls Destroyed . | . . . . . . . . . . . . . . . . . . . . . . . . . . . . . . . . Machines Disabled . | . . . . . . . . . . . . . . . . . . . . . . . . . . . . . . . . Actions | -11 -10 -10 -9 -9 -9 -8 -8 -8 -8 -8 -7 -7 -7 -7 -6 -6 -6 -5 -5 -5 -5 -5 -5 -5 -5 -4 -4 -3 -2 -2 -1 --------- Run | Scr Mat Min Mat Min Exi Min Mat Gar Mat Gar Fac Low Low Dat Pro Fac Gar Fac Gar Fac Ext Cet Arc Hub Gar Fac Gar Res Res DSF Acc Total 10937 | 71 361 44 533 426 263 101 178 1136 450 130 521 299 338 183 308 603 322 399 326 363 463 210 90 321 465 304 215 600 207 156 551 Wait 360 | . 1 . 14 5 7 16 8 16 16 5 15 . 48 9 . 2 8 43 25 2 10 1 1 18 16 4 20 6 23 . 21 Move 8718 | 48 292 16 391 373 251 80 123 932 367 105 452 272 273 123 283 509 261 296 225 309 404 172 68 230 309 257 135 521 164 96 381 Hop . | . . . . . . . . . . . . . . . . . . . . . . . . . . . . . . . . Pick Up 195 | 9 8 1 19 1 2 1 4 9 7 . 12 2 1 6 3 15 6 6 6 8 2 9 3 . 15 8 4 8 3 8 9 Fast Attach 85 | 6 3 . 8 2 . . 2 2 2 1 3 . 3 4 . 5 . 3 1 3 2 2 3 . 11 . 1 4 2 6 6 Attach 100 | 2 2 4 6 1 1 . 4 4 2 . 2 1 1 3 . 5 5 3 1 4 . 3 . 2 14 5 3 4 2 5 11 Detach 46 | . 3 . 5 1 . . 1 1 1 . 3 1 . . . 1 . 3 1 1 . 1 . . 9 . 1 3 . 4 6 Swap 455 | . 15 11 23 12 . 1 12 38 18 7 9 9 3 15 5 23 7 16 26 12 17 7 5 26 25 8 26 14 4 15 46 Drop 213 | 1 6 . 16 5 2 2 5 16 9 1 10 1 4 9 3 16 2 6 8 9 5 11 5 1 20 4 5 10 4 9 8 Fire 692 | 5 31 12 51 26 . 1 19 62 27 7 15 13 4 13 14 25 33 23 33 12 20 4 5 44 46 17 20 30 5 12 63 Melee 2 | . . . . . . . . . . . . . 1 1 . . . . . . . . . . . . . . . . . Ram 1 | . . . . . . . . . 1 . . . . . . . . . . . . . . . . . . . . . . Kick . | . . . . . . . . . . . . . . . . . . . . . . . . . . . . . . . . Crush 9 | . . . . . . . . . . . . . . . . 2 . . . 3 3 . . . . 1 . . . . . Escape Stasis 40 | . . . . . . . . 36 . 4 . . . . . . . . . . . . . . . . . . . . . Rewire 21 | . . . . . . . . 20 . . . . . . . . . . . . . . . . . . . . . 1 . Trap . | . . . . . . . . . . . . . . . . . . . . . . . . . . . . . . . . Miscellaneous . | . . . . . . . . . . . . . . . . . . . . . . . . . . . . . . . . Route ------- -11/Scrapyard -10/Materials (discovered 3 exits: *Mat x2 / [*Min]) -10/Mines -9/Materials (discovered 3 exits: *Mat / *Min x2) -9/Mines (discovered 2 exits: *Mat / *Exi) -9/Exiles (discovered 2 exits: [*Min x2]) -8/Mines -8/Materials (discovered 2 exits: Fac / Gar) -8/Garrison (discovered 4 exits: *Mat x4) -8/Materials (discovered 3 exits: *Fac / [*Sto] / Gar) -8/Garrison (discovered 3 exits: *Fac x3) -7/Factory (discovered 6 exits: Fac x4 / *Low x2) -7/Lower Caves -7/Lower Caves (discovered 2 exits: *Fac / *Dat) -7/Data Miner -6/Proximity Caves -6/Factory (discovered 2 exits: [*Low] / Gar) -6/Garrison -5/Factory (discovered 2 exits: [*Upp] / Gar) -5/Garrison -5/Factory (discovered 2 exits: *Fac / *Ext) -5/Extension (discovered 2 exits: *Fac / *Cet) -5/Cetus (discovered 2 exits: *Fac / [*Arc]) -5/Archives (discovered 3 exits: *Fac / *Hub x2) -5/Hub_04(d) (discovered 2 exits: *Fac / Gar) -5/Garrison -4/Factory -4/Garrison (discovered 4 exits: *Res x3 / [Fac]) -3/Research (discovered 4 exits: *Res x3 / [*Qua]) -2/Research (discovered 4 exits: Acc x3 / DSF) -2/DSF -1/Access To Epsilon Eridani History --------- Turn | Location | Event 2 | -11/Scrapyard | Met Revision 17 12 | -11/Scrapyard | Discovered new exit (range 15) 69 | -11/Scrapyard | Entered Materials 254 | -10/Materials | Discovered new exit (range 4) 331 | -10/Materials | Build established: Mutant 390 | -10/Materials | Discovered new exit (range 9) 441 | -10/Materials | Discovered new exit (range 16) 467 | -10/Materials | Entered Mines 468 | -10/Mines | Assembled infested the area 510 | -10/Mines | Core integrity fell below 50% 534 | -10/Mines | Discovered new exit (range 6) 539 | -10/Mines | Entered Materials 539 | -9/Materials | Evolved 2 slots: Propulsion x1, Utility x1 547 | -9/Materials | Lost 3 parts (1p1n1u) 804 | -9/Materials | Destroyed 7 combat bots 1074 | -9/Materials | Identified exit to Mines 1089 | -9/Materials | Discovered new exit (range 8) 1207 | -9/Materials | Entered Mines 1213 | -9/Mines | Met a Derelict bent on vengeance 1280 | -9/Mines | Learned Materials interactive machine intel 1442 | -9/Mines | Discovered new exit (range 7) 1451 | -9/Mines | Received a Rocket Launcher from a helpful Derelict 1478 | -9/Mines | Assisted by bots powering up and referring to "LRC-V3" 1479 | -9/Mines | Learned Materials terminal intel 1585 | -9/Mines | Build established: Scavenger-Mutant 1664 | -9/Mines | Escorted by a lone wolf Derelict 1724 | -9/Mines | Deemed a non-threat by the Exiles lab entrance 1724 | -9/Mines | Discovered new exit (range 5) 1732 | -9/Mines | Entered Exiles 1732 | -9/Exiles | Accompanied by 4 allies 1750 | -9/Exiles | Discovered new exit (range 15) 1762 | -9/Exiles | Met 8R-AWN 1779 | -9/Exiles | Met EX-HEX 1835 | -9/Exiles | Met EX-DEC 1854 | -9/Exiles | Met EX-BIN 1869 | -9/Exiles | Aligned with FarCom system 1870 | -9/Exiles | Given EX-Vault access code 1897 | -9/Exiles | Opened EX-Vault 1906 | -9/Exiles | Found Superbattery 1930 | -9/Exiles | Warned to stay clear of 0b10 Research branches 1944 | -9/Exiles | Exiles lab attacked by MAIN.C 2004 | -9/Exiles | Discovered new exit (range 10) 2020 | -9/Exiles | Left Exiles lab with Superbattery 2020 | -9/Exiles | Entered Mines 2020 | -8/Mines | Accompanied by 3 allies 2102 | -8/Mines | Discovered new exit (range 10) 2130 | -8/Mines | Entered Materials 2130 | -8/Materials | Accompanied by 3 allies 2130 | -8/Materials | Evolved 2 slots: Utility x1, Weapon x1 2131 | -8/Materials | Identified exit to Factory 2132 | -8/Materials | Loaded intel: 19 interactive machine locations 2133 | -8/Materials | Loaded intel: 12 terminal locations 2251 | -8/Materials | Garrison activated, responded to threat 2307 | -8/Materials | Destroyed 9 combat bots 2378 | -8/Materials | Identified exit to Garrison 2380 | -8/Materials | Entered Garrison 2380 | -8/Garrison | Accompanied by 1 ally 2414 | -8/Garrison | Triggered checkpoint 2464 | -8/Garrison | Triggered checkpoint 2504 | -8/Garrison | Triggered checkpoint 2577 | -8/Garrison | Discovered new exit (range 10) 2602 | -8/Garrison | Triggered checkpoint 2692 | -8/Garrison | Triggered checkpoint 2747 | -8/Garrison | Build established: Scavenger-Skirmisher 2752 | -8/Garrison | Triggered checkpoint 2772 | -8/Garrison | Triggered checkpoint 2796 | -8/Garrison | Garrison Relay disabled 2828 | -8/Garrison | Discovered new exit (range 5) 2989 | -8/Garrison | Discovered new exit (range 10) 3289 | -8/Garrison | Build established: Mutant 3296 | -8/Garrison | Discovered new exit (range 10) 3324 | -8/Garrison | Triggered checkpoint 3371 | -8/Garrison | Discovered new exit (range 48) 3371 | -8/Garrison | Discovered new exit (range 74) 3371 | -8/Garrison | Discovered new exit (range 10) 3371 | -8/Garrison | Discovered new exit (range 69) 3427 | -8/Garrison | Installed Relay Interface Framework 3615 | -8/Garrison | Expanded RIF knowledge: Robot Detection 3777 | -8/Garrison | Entered Materials 4059 | -8/Materials | Discovered new exit (range 13) 4072 | -8/Materials | Discovered exit to Factory (range 14) 4342 | -8/Materials | Identified exit to Garrison 4343 | -8/Materials | Entered Garrison 4352 | -8/Garrison | Discovered exit to Factory (range 76) 4352 | -8/Garrison | Discovered exit to Factory (range 41) 4352 | -8/Garrison | Discovered exit to Factory (range 74) 4400 | -8/Garrison | Triggered checkpoint 4446 | -8/Garrison | Triggered checkpoint 4471 | -8/Garrison | Expanded RIF knowledge: Threat Obfuscation 4509 | -8/Garrison | Entered Factory 4509 | -7/Factory | Evolved 2 slots: Utility x2 4539 | -7/Factory | Identified exit to Factory 4723 | -7/Factory | Identified exit to Lower Caves 4911 | -7/Factory | Fabricated Huge Storage Unit (x1) 5181 | -7/Factory | Entered Lower Caves 5310 | -7/Lower Caves | Learned 4 Factory zone layouts 5468 | -7/Lower Caves | Build established: Skirmisher 5583 | -7/Lower Caves | Discovered new exit (range 15) 5592 | -7/Lower Caves | Attracted the attention of an 0b10 checkpoint 5619 | -7/Lower Caves | Entered another Lower Caves area 5648 | -7/Lower Caves | Discovered exit to Factory (range 5) 5759 | -7/Lower Caves | Learned Factory stockpile data 5922 | -7/Lower Caves | Encountered a Warlord checkpoint 6076 | -7/Lower Caves | Discovered new exit (range 9) 6088 | -7/Lower Caves | Entered Data Miner 6088 | -7/Data Miner | Discovered new exit (range 7) 6116 | -7/Data Miner | Met Data Miner 6162 | -7/Data Miner | Received God Mode back door access code from Data Miner 6197 | -7/Data Miner | Destroyed Data Miner 6200 | -7/Data Miner | Interfaced with the Data Conduit 6205 | -7/Data Miner | Found Prototype Hackware 6209 | -7/Data Miner | Found Prototype Hackware 6380 | -7/Data Miner | Entered Proximity Caves 6515 | -6/Proximity Caves | Build established: Gunner 6529 | -6/Proximity Caves | Learned Factory security intel 6578 | -6/Proximity Caves | Received a Behemoth hack from an annoying Tinkerer 6858 | -6/Proximity Caves | Discovered exit to Factory (range 10) 6861 | -6/Proximity Caves | Attracted the attention of an 0b10 checkpoint 6880 | -6/Proximity Caves | Entered Factory 6880 | -6/Factory | Evolved 2 slots: Propulsion x1, Utility x1 6884 | -6/Factory | Loaded intel: 220 machine locations 6945 | -6/Factory | Identified Deep Network Scanner 7258 | -6/Factory | Build established: Hacker-Mutant 7359 | -6/Factory | Discovered new exit (range 7) 7598 | -6/Factory | Spotted B-75 Beast 7787 | -6/Factory | Intercept squad dispatched 7794 | -6/Factory | Spotted Tracker 7804 | -6/Factory | Identified exit to Garrison 7805 | -6/Factory | Entered Garrison 7806 | -6/Garrison | Loaded intel: 27 machine locations 7856 | -6/Garrison | Triggered checkpoint 7865 | -6/Garrison | Build established: Hacker-Skirmisher 7891 | -6/Garrison | Garrison Relay disabled 7903 | -6/Garrison | Garrison Relay disabled 7996 | -6/Garrison | Triggered checkpoint 7998 | -6/Garrison | Triggered checkpoint 8011 | -6/Garrison | Triggered checkpoint 8073 | -6/Garrison | Destroyed 7 combat bots 8168 | -6/Garrison | Garrison Relay disabled 8196 | -6/Garrison | Discovered new exit (range 19) 8287 | -6/Garrison | Expanded RIF knowledge: Alert ID Control 8332 | -6/Garrison | Entered Factory 8332 | -5/Factory | Evolved 2 slots: Propulsion x1, Weapon x1 8333 | -5/Factory | Loaded intel: 261 machine locations 8669 | -5/Factory | Discovered new exit (range 15) 8946 | -5/Factory | Identified exit to Garrison 8948 | -5/Factory | Entered Garrison 8949 | -5/Garrison | Loaded intel: 22 machine locations 8980 | -5/Garrison | Triggered checkpoint 9034 | -5/Garrison | Expanded RIF knowledge: Threat Obfuscation 9339 | -5/Garrison | Triggered checkpoint 9416 | -5/Garrison | Discovered new exit (range 8) 9430 | -5/Garrison | Garrison Relay disabled 9460 | -5/Garrison | Entered Factory 9461 | -5/Factory | Loaded intel: 217 machine locations 9492 | -5/Factory | Discovered new exit (range 18) 9532 | -5/Factory | Identified System Mapper 9646 | -5/Factory | Fabricated H-66 Slayer? 9650 | -5/Factory | Repaired Hvy. Treads? 9685 | -5/Factory | Fabricated Imp. Heavy Treads (x2) 9921 | -5/Factory | Found Tesla Bomb Launcher 9923 | -5/Factory | Found Tesla Bomb Launcher 10019 | -5/Factory | Discovered new exit (range 10) 10032 | -5/Factory | Entered Extension 10032 | -5/Extension | Accompanied by 3 allies 10033 | -5/Extension | Loaded intel: 37 machine locations 10198 | -5/Extension | Rescued A7 10456 | -5/Extension | Spotted B-75 Beast 10457 | -5/Extension | Spotted B-75 Beast 10459 | -5/Extension | Befriended a Behemoth using the annoying Tinkerer's hack 10475 | -5/Extension | Befriended a Behemoth using the annoying Tinkerer's hack 10533 | -5/Extension | Rescued a captive Derelict 10596 | -5/Extension | Rescued a captive Derelict 10599 | -5/Extension | Rescued a captive Derelict 10738 | -5/Extension | Discovered new exit (range 21) 10739 | -5/Extension | Discovered new exit (range 20) 10782 | -5/Extension | Entered Cetus 10782 | -5/Cetus | Accompanied by 4 allies (A7) 10783 | -5/Cetus | Loaded intel: 24 machine locations 10787 | -5/Cetus | Acquired a Cetus Manufacturing Module code from A7 10802 | -5/Cetus | Spotted Cetus Guard 10802 | -5/Cetus | Spotted Cetus Guard 10803 | -5/Cetus | Spotted Cetus Guard 10803 | -5/Cetus | Spotted Cetus Guard 10811 | -5/Cetus | Allies destroyed Cetus Guard 10814 | -5/Cetus | Destroyed Cetus Guard 10814 | -5/Cetus | Destroyed Cetus Guard 10815 | -5/Cetus | Destroyed Cetus Guard 10892 | -5/Cetus | Started Cetus Manufacturing Module 10904 | -5/Cetus | Escorted A7 to Cetus Mainframe 10916 | -5/Cetus | Discovered new exit (range 22) 10917 | -5/Cetus | Manufactured an Enhanced Grunt 10942 | -5/Cetus | Manufactured an Enhanced Grunt 10946 | -5/Cetus | Spotted Cetus Guard 10948 | -5/Cetus | Spotted Cetus Guard 10951 | -5/Cetus | Spotted Cetus Guard 10953 | -5/Cetus | Discovered new exit (range 22) 10960 | -5/Cetus | Allies destroyed Cetus Guard 10960 | -5/Cetus | Spotted Cetus Guard 10962 | -5/Cetus | Destroyed Cetus Guard 10963 | -5/Cetus | Destroyed Cetus Guard 10964 | -5/Cetus | Destroyed Cetus Guard 10967 | -5/Cetus | Manufactured an Enhanced Grunt 10976 | -5/Cetus | Met Revision 17 10980 | -5/Cetus | System corruption reached 10% 10992 | -5/Cetus | Manufactured an Enhanced Grunt 11017 | -5/Cetus | Manufactured an Enhanced Grunt 11101 | -5/Cetus | Entered Archives 11101 | -5/Archives | Accompanied by 6 allies (A7) 11102 | -5/Archives | Loaded intel: 8 machine locations 11106 | -5/Archives | Received a hacking code to weaken MAIN.C 11148 | -5/Archives | Discovered new exit (range 22) 11169 | -5/Archives | Discovered new exit (range 22) 11188 | -5/Archives | Discovered new exit (range 21) 11243 | -5/Archives | Entered Hub_04(d) 11243 | -5/Hub_04(d) | Accompanied by 3 allies 11243 | -5/Hub_04(d) | Discovered new exit (range 11) 11244 | -5/Hub_04(d) | Loaded intel: 99 machine locations 11366 | -5/Hub_04(d) | Network Hub disabled 11442 | -5/Hub_04(d) | Spotted Lightning 11445 | -5/Hub_04(d) | Spotted Lightning 11448 | -5/Hub_04(d) | Spotted Lightning 11459 | -5/Hub_04(d) | Garrison activated, responded to threat 11466 | -5/Hub_04(d) | Allies destroyed Lightning 11473 | -5/Hub_04(d) | Allies destroyed Lightning 11490 | -5/Hub_04(d) | Destroyed Lightning 11521 | -5/Hub_04(d) | Found Exp. Targeting Computer 11526 | -5/Hub_04(d) | Network Hub disabled 11543 | -5/Hub_04(d) | First assault squad dispatched 11637 | -5/Hub_04(d) | Destroyed 9 combat bots 11781 | -5/Hub_04(d) | Identified exit to Garrison 11783 | -5/Hub_04(d) | Entered Garrison 11784 | -5/Garrison | Loaded intel: 29 machine locations 11796 | -5/Garrison | Triggered checkpoint 11825 | -5/Garrison | Expanded RIF knowledge: Zone Cloak 11888 | -5/Garrison | Triggered checkpoint 11889 | -5/Garrison | Spotted B-75 Beast 11942 | -5/Garrison | Triggered checkpoint 11957 | -5/Garrison | Destroyed B-75 Beast 11978 | -5/Garrison | Destroyed 8 combat bots 11979 | -5/Garrison | System corruption reached 30% 11985 | -5/Garrison | Triggered checkpoint 12240 | -5/Garrison | Triggered checkpoint 12342 | -5/Garrison | Spotted B-75 Beast 12406 | -5/Garrison | Discovered new exit (range 13) 12499 | -5/Garrison | Entered Factory 12499 | -4/Factory | Evolved 2 slots: Utility x1, Weapon x1 12500 | -4/Factory | Loaded intel: 257 machine locations 12749 | -4/Factory | Spotted B-86 Titan 12768 | -4/Factory | Fabricated Railgun (x2) 12846 | -4/Factory | Fabricated Force Field (x2) 12985 | -4/Factory | Identified exit to Garrison 12987 | -4/Factory | Entered Garrison 12988 | -4/Garrison | Loaded intel: 36 machine locations 13031 | -4/Garrison | Triggered checkpoint 13066 | -4/Garrison | Spotted B-86 Titan 13081 | -4/Garrison | Triggered checkpoint 13114 | -4/Garrison | Destroyed B-86 Titan 13135 | -4/Garrison | Destroyed 9 combat bots 13148 | -4/Garrison | Triggered checkpoint 13202 | -4/Garrison | Expanded RIF knowledge: Signal Jamming 13243 | -4/Garrison | Triggered checkpoint 13302 | -4/Garrison | Discovered new exit (range 12) 13302 | -4/Garrison | Discovered new exit (range 43) 13302 | -4/Garrison | Discovered new exit (range 48) 13302 | -4/Garrison | Discovered new exit (range 19) 13312 | -4/Garrison | Build established: Scavenger-Skirmisher 13327 | -4/Garrison | Entered Research 13327 | -3/Research | Evolved 2 slots: Utility x1, Weapon x1 13328 | -3/Research | Loaded intel: 97 machine locations 13355 | -3/Research | Identified exit to Research 13891 | -3/Research | Discovered new exit (range 8) 13940 | -3/Research | Build established: Scavenger-Mutant 14071 | -3/Research | Spotted B-86 Titan 14093 | -3/Research | Destroyed B-86 Titan 14272 | -3/Research | Entered another Research area 14272 | -2/Research | Evolved 2 slots: Power x1, Utility x1 14273 | -2/Research | Loaded intel: 99 machine locations 14347 | -2/Research | Identified exit to Access 14486 | -2/Research | Fabricated Lrn. Tractor Beam (x2) 14573 | -2/Research | Spotted B-90 Cyclops 14579 | -2/Research | Identified exit to DSF 14580 | -2/Research | Entered DSF 14581 | -2/DSF | Loaded intel: 3 machine locations 14603 | -2/DSF | Additional patrols routed to DSF 14608 | -2/DSF | Discovered exit to Access (range 23) 14814 | -2/DSF | Entered Access 14814 | -1/Access | Accompanied by 2 allies 14814 | -1/Access | Evolved 2 slots: Utility x1, Weapon x1 14815 | -1/Access | Loaded intel: 108 machine locations 15400 | -1/Access | Intercept squad dispatched 15410 | -1/Access | Spotted Tracker 15410 | -1/Access | Spotted Tracker 15421 | -1/Access | Destroyed Tracker 15427 | -1/Access | Allies destroyed Tracker 15445 | -1/Access | Spotted Combat Programmer 15463 | -1/Access | Allies destroyed Combat Programmer 15465 | -1/Access | Spotted Combat Programmer 15469 | -1/Access | Destroyed Combat Programmer 15524 | -1/Access | Discovered new exit (range 6) 15545 | -1/Access | Spotted B-99 Colossus 15570 | -1/Access | Destroyed B-99 Colossus 15616 | -1/Access | Spotted B-99 Colossus 15646 | -1/Access | Destroyed B-99 Colossus 15659 | -1/Access | Lost 5 parts (1p2u2w) 15659 | -1/Access | Found Prototype Ballistic Gun 15659 | -1/Access | Identified Multirail 15681 | *** | Escaped! Last Messages --------------- 15646_ B-99 Colossus destroyed. 15646_ Slug penetrates Reinforced Barrier. 15650_ Acquired 11 matter. 15650_ Acquired 12 matter. 15650_ Acquired 2 matter. 15650_ Acquired 6 matter. 15650_ Acquired 31 matter. 15650_ Acquired 8 matter. 15650_ Acquired 32 matter. 15650_ Acquired 49 matter. 15650_ Acquired 5 matter. 15654_ Ended siege mode. 15657_ R-10 Processor collects Com. Wheel. 15659_ Acquired Prototype Ballistic Gun. 15659_ Identified Multirail. 15663_ Acquired Linear Accelerator. 15664_ System corrupted: Matter fused (-7). 15667_ Acquired Linear Accelerator. 15670_ Acquired Com. Linear Accelerator. 15671_ Acquired 6 matter. Map ----- +----------------------------------------------------+ | ???????????????????""??# ## #????????? | | ???????????????????""??# ## ] #????????? | | ???????????????????????# ## #????????? | | ???????????????????????# ## #????????? | | ???????????????????????# ######+#+###+##????????? | | ???????????????????????# #######??? | | ???????????????????????# + "??? | | ??????????????????????#####+########## # """ ? | | ??????????????????????? ?????# # """ ? | | ???????????????????Y??? ?????# # " ? | | ??????????????????????? """""""????# # ? | | ??????????????????????? """Y"""????# # ? | | ?????????????????????????????????????# #! ? | | ?????????????????????????????????????# # ? | | ?????????????????????????????????????# # ? | | ?????????????????????????????????????# + ? | | ?????????????????????????????????????# # """ "" | | """??????????????????????????????????# # """T"" | | """"?????????????????????????????????# w#######??? | | """"?????????????????????????###?????# #????????? | | """??????#########??########## #######u #????????? | | ?????????# """" k #????????? | | ?????????# """" #????????? | | ########## """" #????????? | | ^ """" #?????"??? | | """" "@ #????"""?? | | ^ !!! """" "" #???"""??? | | ^ ! * """" #????"???? | | ??######## ! ! %!% #????????? | | ?????????# *!!!!"""" =!!* "" """ #????????? | | ?????????# ! %"""" " T""" #????????? | | ?????????#########??########## ####### #????????? | | ?????????????????????????????###?????# #????????? | | ?????????????????????????????????????# #????????? | | ?????????????????????????????????????# #????????? | | ?????????????????????????????????????# %#????????? | | ?????????????????????????????????????# %##???????? | | ?????????????????????????????????????# ##???????? | | ?????????????????????????????????????# ##???????? | | ?????????????????????????????????????# ##???????? | | ????????????????????????????#######??# ##???????? | | ????????????????????????????#######??# # ???????? | | ???????????????????????????? ??# # ???? | | ???????## ??????????????????? ???#%%# """"" | | ???????## ??????????????????? ???#% #"""""""" | | ???????## ??????????????????? " ???# #"""""""" | | ???????## ???????????????????""" ????#* # """"" | | ??????? # ????????????????????"""????#=!# | | ????????? ???????????????????? " ????#=%# | | ????????? ??????""?""????????? ????#!=#! | +----------------------------------------------------+ Best States ------------- Heat Dissipation 128 Energy Generation 45 Energy Capacity 2100 Matter Stores 300 Matter Capacity 300 Sight Range 23 Robot Scan Range 14 Terrain Scan Range 16 Terrain Scan Density 110 Jamming Range 14 Resistance: TH 30 Resistance: EM 25 Utility Shielding 66 Weapon Shielding 66 Weapon Cycling 30 Evasion (%) 50 Targeting Accuracy 12 Target Analysis 8 Armor Integrity Analysis 40 Recoil Reduction 5 Kinecelleration 40 Salvage Targeting 3 Offensive Hacking 67 Relay Coupler Types 2 Relay Coupler Value 71 Authchip Count 1 Item Schematics ----------------- Hcp. Storage Unit | -10/Materials | Hacked Huge Storage Unit | -10/Materials | Hacked Combat Drone Bay | -7/Data Miner | Free Lgt. Regenerative Plating | -7/Data Miner | Free Cld. Aerolev Unit | -7/Data Miner | Free Exp. Weapon Shielding | -7/Data Miner | Free Com. Ion Cannon | -7/Data Miner | Free Field Propulsion Drive | -7/Data Miner | Free Point Defense System | -7/Data Miner | Free Tesla Rifle | -7/Data Miner | Free Graphene Brace | -7/Data Miner | Free Adv. Concussive RPG | -7/Data Miner | Free Force Field | -6/Factory | Hacked Imp. Heavy Treads | -5/Factory | Hacked Lrn. Tractor Beam | -5/Factory | Hacked Matter Compressor | -5/Factory | Hacked Adv. Salvage Targeting Computer | -5/Extension | Hacked Robot Schematics ------------------ M-28 Smith | -7/Data Miner | Free W-25 Informer | -7/Data Miner | Free A-15 Conveyor | -7/Data Miner | Free H-66 Slayer | -7/Data Miner | Free Y-54 Guardian | -7/Data Miner | Free B-48 Gladiator | -7/Data Miner | Free B-60 Warrior | -7/Data Miner | Free Fabricated ------------ Huge Storage Unit | x1 | -7/Factory H-66 Slayer | x2 | -5/Factory | Authchip Imp. Heavy Treads | x2 | -5/Factory Railgun | x2 | -4/Factory | Preloaded Force Field | x2 | -4/Factory Lrn. Tractor Beam | x2 | -2/Research Alien Tech Used ----------------- None Achievements -------------- Woof! Challenges ------------ None Game ------ Seed PulseTargetingMace Manual? 0 Play Time 05:03:18 Cumulative 759.2 hours Start 2022.07.24 @ 11:40:13 End 2022.07.24 @ 18:54:19 Sessions 9 Manual Loads 0 Difficulty Rogue Special Mode None Game No. 397 Rogue 270 Adventurer 125 Explorer 2 Win Type 0 Total 90 Types 75/7/4/1/1/0/0/1/1 Lore% 82 Gallery% 88 Achievement% 78 Wizard Run 0 Options --------- ASCII 0 Keyboard 1 Movement Numpad Keybinds 0 Fullscreen 1 Font 36/TerminusFine Map View 76x50 Tactical HUD 1 Map Filters NONE Filters NONE Steam 1 RUN: ddeffaf4-5e3f-43da-a922-6c1ce9e10279